{"text_format":"3","workbook":"xlsx","n_sheets":2,"sheets":["VAST. seuranta","VAST. yhteenveto"],"not_rendered":{"charts":2,"defined_names":22},"read":"whole","date_system":"1900"}

{"sheet":"VAST. seuranta","index":0,"n_rows":15,"n_cols":15,"rows_kept":15,"merged":[[0,3,0,4],[0,5,0,7],[1,3,1,14]]}
[{"$nulls":5},"VAST. YHTEENVETO"]
[null,"HÄÄPÄIVÄ",null,"hääkutsujen seuranta"]
[null,{"$f":"TODAY()+283","v":"2019-06-24"},null,"VIERAAN NIMI","LÄHETETTY?","VAST.","SEURUE","VIERAS","SUHDE","OSOITE","PAIKKAKUNTA","VALTIO","Postinumero","PUHELIN","YHTEYSSÄHKÖPOSTI"]
[null,"PÄIVIÄ JÄLJELLÄ",null,"Nimi 1","Kyllä","Kyllä",1,"Puoliso 1","Veli","Osoite","Paikkakunta","Valtio","Postinumero","Puhelin","joku@example.com"]
[null,{"$f":"PäiviäJäljellä","v":283},null,"Nimi 2","Kyllä","Ei",3,"Puoliso 1","Ystävä","Osoite","Paikkakunta","Valtio","Postinumero","Puhelin","joku@example.com"]
[null,"OSALLISTUU",null,"Nimi 3","Kyllä","Kyllä",1,"Muut","Ystävä","Osoite","Paikkakunta","Valtio","Postinumero","Puhelin","joku@example.com"]
[null,{"$f":"YhteensäOsallistuu","v":12},null,"Nimi 4","Kyllä","Ei",2,"Puoliso 2","Ystävä","Osoite","Paikkakunta","Valtio","Postinumero","Puhelin","joku@example.com"]
[null,"EI OSALLISTU",null,"Nimi 5","Kyllä","Kyllä",2,"Puoliso 2","Ystävä","Osoite","Paikkakunta","Valtio","Postinumero","Puhelin","joku@example.com"]
[null,{"$f":"YhteensäEiOsallistu","v":6},null,"Nimi 6","Kyllä","Alustava",null,"Muut","Ystävä","Osoite","Paikkakunta","Valtio","Postinumero","Puhelin","joku@example.com"]
[null,"AVOIN",null,"Nimi 7","Kyllä","Kyllä",2,"Puoliso 2","Ystävä","Osoite","Paikkakunta","Valtio","Postinumero","Puhelin","joku@example.com"]
[null,{"$f":"AvoinVAST.","v":1},null,"Nimi 8","Kyllä","Ei",1,"Muut","Ystävä","Osoite","Paikkakunta","Valtio","Postinumero","Puhelin","joku@example.com"]
[{"$nulls":3},"Nimi 9","Kyllä","Kyllä",4,"Puoliso 1","Ystävä","Osoite","Paikkakunta","Valtio","Postinumero","Puhelin","joku@example.com"]
[{"$nulls":3},"Nimi 10","Kyllä","Kyllä",2,"Puoliso 1","Ystävä","Osoite","Paikkakunta","Valtio","Postinumero","Puhelin","joku@example.com"]
[{"$nulls":3},"Nimi 11","Kyllä",null,null,"Puoliso 2","Veli","Osoite","Paikkakunta","Valtio","Postinumero","Puhelin","joku@example.com"]
[{"$nulls":3},"YHTEENSÄ:",{"$f":"COUNTIF('VAST. seuranta'!$E$4:$E$14,\"Kyllä\")","v":11},{"$f":"COUNTA('VAST. seuranta'!$F$4:$F$14)","v":10},{"$f":"SUBTOTAL(109,tblKutsut[SEURUE])","v":18}]

{"sheet":"VAST. yhteenveto","index":1,"n_rows":11,"n_cols":15,"rows_kept":11,"merged":[[0,3,0,4],[0,5,0,8],[1,3,1,11],[2,3,6,3],[2,4,6,4],[7,3,11,3],[7,4,11,4]]}
[{"$nulls":3},"VAST. SEURANTA"]
[null,"HÄÄPÄIVÄ",null,"vast. yhteenveto",{"$nulls":10},"muistiinpanot"]
[null,{"$f":"Hääpäivä","v":"2019-06-24"},null,"KYLLÄ","Yhdistelmäpalkkikaavio, jossa näkyvät myöntävän vastauksen antaneiden vieraiden määrät vierastyypeittäin."]
[null,"PÄIVIÄ JÄLJELLÄ",{"$nulls":3},"MUUT",{"$f":"IFERROR(SUMIFS(tblKutsut[SEURUE],tblKutsut[VIERAS],\"=Muut\",tblKutsut[VAST.],\"Kyllä\"),0)","v":1},{"$f":"tblKutsut[[#Totals],[LÄHETETTY?]]","v":11}]
[null,{"$f":"PäiviäJäljellä","v":283},{"$nulls":3},"PUOLISO 2",{"$f":"IFERROR(SUMIFS(tblKutsut[SEURUE],tblKutsut[VIERAS],\"=Puoliso 2\",tblKutsut[VAST.],\"Kyllä\"),0)","v":4},{"$f":"tblKutsut[[#Totals],[LÄHETETTY?]]","v":11}]
[null,"OSALLISTUU",{"$nulls":3},"PUOLISO 1",{"$f":"IFERROR(SUMIFS(tblKutsut[SEURUE],tblKutsut[VIERAS],\"=Puoliso 1\",tblKutsut[VAST.],\"Kyllä\"),0)","v":7},{"$f":"tblKutsut[[#Totals],[LÄHETETTY?]]","v":11}]
[null,{"$f":"YhteensäOsallistuu","v":12}]
[null,"EI OSALLISTU",null,"EI","Yhdistelmäpalkkikaavio, jossa näkyvät kieltävän vastauksen antaneiden vieraiden määrät vierastyypeittäin."]
[null,{"$f":"YhteensäEiOsallistu","v":6},{"$nulls":3},"MUUT",{"$f":"IFERROR(SUMIFS(tblKutsut[SEURUE],tblKutsut[VIERAS],\"=Muut\",tblKutsut[VAST.],\"Ei\"),0)","v":1},{"$f":"tblKutsut[[#Totals],[LÄHETETTY?]]","v":11}]
[null,"AVOIN",{"$nulls":3},"PUOLISO 2",{"$f":"IFERROR(SUMIFS(tblKutsut[SEURUE],tblKutsut[VIERAS],\"=Puoliso 2\",tblKutsut[VAST.],\"Ei\"),0)","v":2},{"$f":"tblKutsut[[#Totals],[LÄHETETTY?]]","v":11}]
[null,{"$f":"AvoinVAST.","v":1},{"$nulls":3},"PUOLISO 1",{"$f":"IFERROR(SUMIFS(tblKutsut[SEURUE],tblKutsut[VIERAS],\"=Puoliso 1\",tblKutsut[VAST.],\"Ei\"),0)","v":3},{"$f":"tblKutsut[[#Totals],[LÄHETETTY?]]","v":11}]